fUST/lending_fUST_20260610
["ID","MTS","AMOUNT","RATE_DAILY","PERIOD"]
[424669247,1781038240000,-356.426,0.00016322,2]
[424669249,1781038240000,-842.61772865,0.0001633,2]
[424669245,1781038240000,-444.0,0.00016322,2]
[424669243,1781038240000,-186.0,0.00016322,2]
[424669253,1781038240000,-842.61772865,0.0001633,2]
[424669567,1781038243000,-167.69961909,0.0001633,2]
[424669571,1781038243000,-643.05780538,0.0001633,2]
[424669672,1781038243000,-199.55992327,0.0001633,2]
[424669680,1781038243000,-842.61772865,0.0001633,2]
[424669678,1781038243000,-842.61772865,0.0001633,2]
[424669676,1781038243000,-842.61772865,0.0001633,2]
[424669681,1781038243000,-842.61772865,0.0001633,2]
[424669674,1781038243000,-842.61772865,0.0001633,2]
[424669696,1781038244000,-863.68317188,0.0001633,2]
[424669683,1781038244000,-842.61772865,0.0001633,2]
[424669687,1781038244000,-863.68317188,0.0001633,2]
[424669685,1781038244000,-842.61772865,0.0001633,2]
[424669692,1781038244000,-863.68317188,0.0001633,2]
[424669694,1781038244000,-863.68317188,0.0001633,2]
[424669700,1781038244000,-863.68317188,0.0001633,2]
[424669704,1781038244000,-863.68317188,0.0001633,2]
[424669702,1781038244000,-863.68317188,0.0001633,2]
[424669710,1781038244000,-1009.61584574,0.0001633,2]
[424669712,1781038244000,-1009.61584574,0.0001633,2]
[424669708,1781038244000,-1009.61584574,0.0001633,2]
[424669706,1781038244000,-863.68317188,0.0001633,2]
[424669716,1781038244000,-2332.20070997,0.00016416,2]
[424669714,1781038244000,-151.0,0.00016406,2]
[424669698,1781038244000,-863.68317188,0.0001633,2]
[424670464,1781039377000,-332.33817307,0.00014746,7]
[424670463,1781039377000,-332.33817307,0.00014457,7]
[424670466,1781039377000,-332.33817307,0.00015614,7]
[424670465,1781039377000,-332.33817307,0.0001518,7]
[424670469,1781039377000,-150.0,0.0002126,7]
[424670468,1781039377000,-152.0,0.00020629,7]
[424670470,1781039377000,-1866.0,0.00021918,7]
[424670467,1781039377000,-332.33817309,0.00016192,7]
[424670479,1781039378000,-351.36266776,0.00022084,7]
[424670488,1781039378000,-307.06925777,0.00023574,120]
[424670490,1781039378000,-200.0,0.00023604,120]
[424670487,1781039378000,-320.41677939,0.00023574,120]
[424670485,1781039378000,-511.26197111,0.00023291,120]
[424670483,1781039378000,-600.0,0.00022355,10]
[424670486,1781039378000,-200.0,0.00023527,120]
[424670484,1781039378000,-219.0,0.00022466,7]
[424670481,1781039378000,-151.0,0.000223,7]
[424670473,1781039378000,-579.2926113,0.0002196,10]
[424670477,1781039378000,-351.32,0.00022034,7]
[424670475,1781039378000,-400.93,0.00021997,7]
[424670476,1781039378000,-175.24470688,0.00022,10]
[424670478,1781039378000,-400.93,0.00022047,7]
[424670474,1781039378000,-351.32,0.00021984,7]
[424670472,1781039378000,-400.93,0.00021947,7]
[424670471,1781039378000,-351.32,0.00021934,7]
[424670489,1781039378000,-416.17517561,0.00023574,120]
[424670480,1781039378000,-400.93,0.00022097,7]
[424670491,1781039378000,-176.13969299,0.00023676,120]
[424670482,1781039378000,-172.28,0.00022317,7]
[424670495,1781039378000,-417.15472785,0.0002399,7]
[424670513,1781039378000,-5000.0,0.000248,30]
[424670509,1781039378000,-5000.0,0.000248,30]
[424670510,1781039378000,-5000.0,0.000248,30]
[424670511,1781039378000,-5000.0,0.000248,30]
[424670505,1781039378000,-417.15472785,0.000248,30]
[424670507,1781039378000,-5000.0,0.000248,30]
[424670506,1781039378000,-5000.0,0.000248,30]
[424670508,1781039378000,-5000.0,0.000248,30]
[424670504,1781039378000,-2671.96327289,0.000248,30]
[424670502,1781039378000,-720.0,0.00024591,10]
[424670492,1781039378000,-214.0,0.00023704,30]
[424670501,1781039378000,-158.0,0.000242,120]
[424670512,1781039378000,-5000.0,0.000248,30]
[424670494,1781039378000,-3707.0,0.00023988,7]
[424670496,1781039378000,-168.0,0.00024,7]
[424670497,1781039378000,-200.0,0.00024,21]
[424670493,1781039378000,-272.27582523,0.00023756,7]
[424670499,1781039378000,-305.43,0.0002414,7]
[424670503,1781039378000,-1732.44630357,0.0002472,30]
[424670500,1781039378000,-1420.0,0.0002414,30]
[424670498,1781039378000,-222.0,0.0002411,12]
[424670524,1781039379000,-500.0,0.00025,120]
[424670531,1781039379000,-417.15472785,0.000255,30]
[424670532,1781039379000,-225.0,0.00025753,17]
[424670529,1781039379000,-160.0,0.00025,10]
[424670527,1781039379000,-1040.94879517,0.00025,10]
[424670528,1781039379000,-160.0,0.00025,30]
[424670526,1781039379000,-417.15472785,0.00025,10]
[424670523,1781039379000,-200.0,0.00025,120]
[424670519,1781039379000,-3164.17293056,0.000249,120]
[424670522,1781039379000,-500.0,0.0002497,30]
[424670521,1781039379000,-272.27582523,0.00024944,30]
[424670520,1781039379000,-272.27582523,0.00024944,7]
[424670533,1781039379000,-211.51555187,0.0002586,30]
[424670518,1781039379000,-485.0,0.00024891,30]
[424670517,1781039379000,-5205.0,0.0002488,10]
[424670516,1781039379000,-4291.64,0.000248,30]
[424670515,1781039379000,-5000.0,0.000248,30]
[424670514,1781039379000,-5000.0,0.000248,30]
[424670525,1781039379000,-200.0,0.00025,120]
[424670534,1781039379000,-168.0,0.00026,7]
[424670530,1781039379000,-625.81255585,0.00025,120]
[424670535,1781039379000,-160.0,0.00026,10]
[424670556,1781039379000,-158.0,0.000284,120]
[424670555,1781039379000,-500.0,0.000284,120]
[424670553,1781039379000,-315.34678,0.000282,120]
[424670554,1781039379000,-244.53411,0.000282,120]
[424670552,1781039379000,-160.0,0.00028,10]
[424670548,1781039379000,-205.98,0.00027397,15]
[424670551,1781039379000,-160.0,0.00028,10]
[424670550,1781039379000,-200.0,0.000274,120]
[424670549,1781039379000,-164.0,0.00027397,24]
[424670546,1781039379000,-421.0,0.00027081,7]
[424670537,1781039379000,-152.69738905,0.00026137,7]
[424670545,1781039379000,-864.0,0.0002705,30]
[424670544,1781039379000,-200.0,0.00027,120]
[424670543,1781039379000,-200.0,0.00027,120]
[424670540,1781039379000,-421.0,0.00026807,7]
[424670541,1781039379000,-200.0,0.00027,120]
[424670539,1781039379000,-421.0,0.00026533,7]
[424670542,1781039379000,-272.34828,0.00027,120]
[424670536,1781039379000,-421.0,0.00026,7]
[424670538,1781039379000,-421.0,0.00026259,7]
[424670547,1781039379000,-421.0,0.00027284,7]
[424670572,1781039380000,-14200.0576592,0.0003,7]
[424670570,1781039380000,-200.0,0.0003,120]
[424670571,1781039380000,-1000.0,0.0003,120]
[424670575,1781039380000,-300.36926194,0.0003,120]
[424670574,1781039380000,-328.41352912,0.0003,60]
[424670576,1781039380000,-217.2847329,0.0003,120]
[424670568,1781039380000,-421.0,0.00029794,14]
[424670573,1781039380000,-3296.8041308,0.0003,100]
[424670569,1781039380000,-312.0,0.000298,120]
[424670563,1781039380000,-150.0,0.000288,7]
[424670566,1781039380000,-256.0,0.0002908,20]
[424670564,1781039380000,-150.0,0.000288,7]
[424670565,1781039380000,-228.0,0.000288,7]
[424670562,1781039380000,-175.10600417,0.000288,7]
[424670561,1781039380000,-429.0,0.00028648,14]
[424670560,1781039380000,-421.0,0.00028648,14]
[424670559,1781039380000,-234.0,0.00028493,29]
[424670558,1781039380000,-154.0,0.000284,120]
[424670577,1781039380000,-227.86094187,0.0003,120]
[424670567,1781039380000,-1000.0,0.00029755,30]
[424670557,1781039380000,-150.0,0.000284,120]
[424670578,1781039380000,-176.94311126,0.0003,120]
[424670579,1781039380000,-288.46304658,0.0003,120]
[424670598,1781039380000,-192.0,0.00030137,38]
[424670599,1781039380000,-300.36926194,0.000309,120]
[424670597,1781039380000,-1000.0,0.00030137,30]
[424670596,1781039380000,-1000.0,0.00030137,30]
[424670595,1781039380000,-634.9,0.00030137,30]
[424670594,1781039380000,-421.0,0.00030012,14]
[424670592,1781039380000,-417.15472785,0.0003,120]
[424670591,1781039380000,-160.0,0.0003,7]
[424670593,1781039380000,-1031.0,0.0003,7]
[424670580,1781039380000,-161.37633593,0.0003,120]
[424670589,1781039380000,-273.95837443,0.0003,120]
[424670588,1781039380000,-166.31365596,0.0003,120]
[424670586,1781039380000,-175.14150153,0.0003,120]
[424670587,1781039380000,-319.93513055,0.0003,120]
[424670585,1781039380000,-160.0,0.0003,120]
[424670584,1781039380000,-161.06111172,0.0003,120]
[424670583,1781039380000,-162.04921828,0.0003,120]
[424670582,1781039380000,-209.39387152,0.0003,120]
[424670581,1781039380000,-199.61462151,0.0003,120]
[424670590,1781039380000,-1137.8923984,0.0003,120]
[424670613,1781039381000,-319.93513055,0.000318,120]
[424670612,1781039381000,-175.14150153,0.000318,120]
[424670616,1781039381000,-1000.0,0.00032,120]
[424670620,1781039381000,-158.0,0.000325,120]
[424670617,1781039381000,-168.0,0.00032,7]
[424670618,1781039381000,-2000.0,0.00032,120]
[424670614,1781039381000,-166.31365596,0.000318,120]
[424670615,1781039381000,-1000.0,0.00032,120]
[424670610,1781039381000,-203.0,0.00031781,48]
[424670606,1781039381000,-421.0,0.00031377,14]
[424670609,1781039381000,-1000.0,0.00031507,40]
[424670608,1781039381000,-1000.0,0.00031507,40]
[424670607,1781039381000,-500.0,0.000314,120]
[424670605,1781039381000,-421.0,0.0003094,14]
[424670604,1781039381000,-166.31365596,0.000309,120]
[424670603,1781039381000,-319.93513055,0.000309,120]
[424670602,1781039381000,-175.14150153,0.000309,120]
[424670601,1781039381000,-176.94311126,0.000309,120]
[424670619,1781039381000,-421.0,0.00032086,14]
[424670611,1781039381000,-300.36926194,0.000318,120]
[424670600,1781039381000,-217.2847329,0.000309,120]
[424670621,1781039381000,-1000.0,0.0003273,30]
[424670622,1781039381000,-244.0,0.0003273,30]
[424670623,1781039381000,-421.0,0.00032741,14]
[424670642,1781039381000,-3401.986448,0.00033,7]
[424670641,1781039381000,-1226.948134,0.00033,7]
[424670639,1781039381000,-1226.948134,0.00033,7]
[424670640,1781039381000,-3401.986448,0.00033,7]
[424670638,1781039381000,-1226.948134,0.00033,7]
[424670635,1781039381000,-151.0,0.00033,7]
[424670636,1781039381000,-151.0,0.00033,7]
[424670634,1781039381000,-417.15472785,0.00033,10]
[424670637,1781039381000,-1226.948134,0.00033,7]
[424670631,1781039381000,-500.0,0.00032877,12]
[424670633,1781039381000,-4893.27460558,0.00033,90]
[424670626,1781039381000,-166.31365596,0.000328,120]
[424670625,1781039381000,-319.93513055,0.000328,120]
[424670628,1781039381000,-879.32304268,0.00032876,120]
[424670624,1781039381000,-300.36926194,0.000328,120]
[424670629,1781039381000,-409.16,0.00032877,120]
[424670630,1781039381000,-500.0,0.00032877,10]
[424670632,1781039381000,-300.0,0.00033,120]
[424670627,1781039381000,-1031.46915503,0.00032876,120]
[424670653,1781039382000,-151.0,0.000332,7]
[424670661,1781039382000,-312.662139,0.000332,7]
[424670660,1781039382000,-312.662139,0.000332,7]
[424670658,1781039382000,-151.0,0.000332,7]
[424670659,1781039382000,-151.0,0.000332,7]
[424670657,1781039382000,-151.0,0.000332,7]
[424670655,1781039382000,-151.0,0.000332,7]
[424670656,1781039382000,-151.0,0.000332,7]
[424670654,1781039382000,-151.0,0.000332,7]
[424670643,1781039382000,-3401.986448,0.00033,7]
[424670652,1781039382000,-151.0,0.000332,7]
[424670650,1781039382000,-151.0,0.000332,7]
[424670663,1781039382000,-312.662139,0.000332,7]
[424670649,1781039382000,-177.269855,0.000332,7]
[424670647,1781039382000,-177.269855,0.000332,7]
[424670646,1781039382000,-177.269855,0.000332,7]
[424670645,1781039382000,-417.15472785,0.00033,7]
[424670644,1781039382000,-3401.986448,0.00033,7]
[424670651,1781039382000,-151.0,0.000332,7]
[424670664,1781039382000,-151.0,0.000332,7]
[424670648,1781039382000,-177.269855,0.000332,7]
[424670667,1781039382000,-151.0,0.000332,7]
[424670685,1781039382000,-151.0,0.000332,7]
[424670684,1781039382000,-151.0,0.000332,7]
[424670683,1781039382000,-151.0,0.000332,7]
[424670682,1781039382000,-151.0,0.000332,7]
[424670681,1781039382000,-151.0,0.000332,7]
[424670680,1781039382000,-151.0,0.000332,7]
[424670679,1781039382000,-2170.172668,0.000332,7]
[424670675,1781039382000,-693.573841,0.000332,7]
[424670678,1781039382000,-2170.172668,0.000332,7]
[424670677,1781039382000,-2170.172668,0.000332,7]
[424670662,1781039382000,-151.0,0.000332,7]
[424670674,1781039382000,-693.573841,0.000332,7]
[424670665,1781039382000,-312.662139,0.000332,7]
[424670666,1781039382000,-151.0,0.000332,7]
[424670669,1781039382000,-29437.11459608,0.000332,117]
[424670668,1781039382000,-151.0,0.000332,7]
[424670676,1781039382000,-2170.172668,0.000332,7]
[424670671,1781039382000,-29437.11459605,0.000332,117]
[424670673,1781039382000,-693.573841,0.000332,7]
[424670672,1781039382000,-693.573841,0.000332,7]
[424670670,1781039382000,-29437.11459605,0.000332,117]
[424670701,1781039383000,-26491.42706663,0.00034,14]
[424670698,1781039383000,-166.31365596,0.000338,120]
[424670699,1781039383000,-189.0,0.00033973,65]
[424670697,1781039383000,-319.93513055,0.000338,120]
[424670700,1781039383000,-500.0,0.00034,120]
[424670696,1781039383000,-300.36926194,0.000338,120]
[424670695,1781039383000,-29437.11459605,0.00033489,118]
[424670693,1781039383000,-421.0,0.00033232,30]
[424670692,1781039383000,-151.0,0.000332,7]
[424670688,1781039383000,-151.0,0.000332,7]
[424670690,1781039383000,-151.0,0.000332,7]
[424670689,1781039383000,-151.0,0.000332,7]
[424670691,1781039383000,-151.0,0.000332,7]
[424670686,1781039383000,-151.0,0.000332,7]
[424670694,1781039383000,-500.0,0.00033425,14]
[424670703,1781039383000,-421.0,0.00034378,30]
[424670702,1781039383000,-170.0,0.00034,7]
[424670705,1781039383000,-1750.99296915,0.00034657,120]
[424670719,1781039383000,-355.0,0.00035616,7]
[424670715,1781039383000,-300.0,0.00035,120]
[424670718,1781039383000,-6376.06563987,0.00035,120]
[424670717,1781039383000,-300.0,0.00035,14]
[424670716,1781039383000,-276.0,0.00035,120]
[424670714,1781039383000,-150.0,0.00035,69]
[424670704,1781039383000,-500.0,0.00034521,16]
[424670712,1781039383000,-269.44382833,0.00035,120]
[424670713,1781039383000,-53814.49394218,0.00035,30]
[424670710,1781039383000,-172.08897691,0.00035,60]
[424670708,1781039383000,-311.0,0.00035,120]
[424670709,1781039383000,-504.10437027,0.00035,120]
[424670687,1781039383000,-151.0,0.000332,7]
[424670706,1781039383000,-28440.93099451,0.0003484,10]
[424670711,1781039383000,-200.0,0.00035,120]
[424670707,1781039383000,-200.0,0.00035,120]
[424670720,1781039386000,650.280313,0.000332,7]
[424670721,1781039388000,650.280313,0.000332,7]
[424670722,1781039391000,650.280313,0.000332,7]
[424670723,1781039393000,650.280313,0.000332,7]
[424670724,1781039399000,747.78548872,0.0003,120]
[424670725,1781039400000,747.78548872,0.000309,120]
[424670726,1781039400000,747.78548872,0.000318,120]
[424670727,1781039414000,307.06925777,0.00020116,120]
[424670728,1781039425000,320.41677939,0.00020116,120]
[424670819,1781039438000,-500.0,0.00016026,2]
[424670805,1781039438000,-740.0,0.00013791,2]
[424670806,1781039438000,-4260.0,0.00013791,2]
[424670810,1781039438000,-320.29081852,0.0001505,2]
[424670809,1781039438000,-738.8531834,0.00014746,2]
[424670808,1781039438000,-156.0,0.00014357,2]
[424670811,1781039438000,-320.29081852,0.0001505,2]
[424670813,1781039438000,-165.98446979,0.00015458,2]
[424670812,1781039438000,-320.29081852,0.0001505,2]
[424670817,1781039438000,-500.0,0.00016026,2]
[424670820,1781039438000,-486.41706574,0.00016026,2]
[424670821,1781039438000,-522.1081444,0.00016026,2]
[424670816,1781039438000,-500.0,0.00016026,2]
[424670822,1781039438000,-4314.22205429,0.00016027,2]
[424670818,1781039438000,-500.0,0.00016026,2]
[424670814,1781039438000,-156.05781388,0.00015458,2]
[424670815,1781039438000,-303.0,0.0001589,3]
[424671008,1781039440000,-4336.5428403,0.00016027,2]
[424671023,1781039440000,-225.8335082,0.00016027,2]
[424671025,1781039440000,-156.42125115,0.00016173,2]
[424671027,1781039440000,-104.90445261,0.00016192,2]
[424671021,1781039440000,-2834.90014401,0.00016027,2]
[424671360,1781039443000,-180.23554739,0.00016192,2]
[424671365,1781039443000,-395.02003873,0.00016213,2]
[424671362,1781039443000,-193.07686624,0.00016213,2]
[424671363,1781039443000,-643.83736057,0.00016213,2]
[424671688,1781039446000,-641.08947809,0.00016213,2]
[424671686,1781039446000,-248.81732184,0.00016213,2]
[424671709,1781039446000,-643.83736057,0.00016213,2]
[424671711,1781039446000,-643.83736057,0.00016213,2]
[424671707,1781039446000,-2.74788248,0.00016213,2]
[424671713,1781039446000,-643.83736057,0.00016213,2]
[424671717,1781039446000,-643.83736057,0.00016213,2]
[424671719,1781039446000,-643.83736057,0.00016213,2]
[424671721,1781039446000,-371.94821507,0.00016213,2]
[424671715,1781039446000,-643.83736057,0.00016213,2]
[424672687,1781039480000,172.28,0.00023241,120]
[424672689,1781039485000,176.13969299,0.00020116,120]
[424672688,1781039485000,307.06925777,0.00020116,120]
[424672690,1781039495000,320.41677939,0.00020116,120]
[424672692,1781039508000,416.17517561,0.00020116,120]
[424672694,1781039533000,163.0,0.0002,120]
[424672695,1781039547000,307.06925777,0.00020116,120]
[424672696,1781039550000,200.0,0.00023132,120]
[424672697,1781039557000,320.41677939,0.00020116,120]
[424672698,1781039570000,416.17517561,0.00020116,120]
[424672699,1781039609000,228.86094188,0.00020116,120]
[424672700,1781039619000,320.41677939,0.00020116,120]
[424672701,1781039624000,338.15594126,8.4e-05,2]
[424672702,1781039624000,105.68405874,8.4e-05,2]
[424672703,1781039624000,443.84,8.4e-05,2]
[424672705,1781039625000,443.86,8.4e-05,2]
[424672704,1781039625000,443.84,8.4e-05,2]
[424672707,1781039832000,264.69,8.4e-05,2]
[424672708,1781039852000,461.95,8.4e-05,2]
[424672711,1781039853000,461.95,8.4e-05,2]
[424672710,1781039853000,461.96,8.4e-05,2]
[424672709,1781039853000,461.95,8.4e-05,2]
[424672715,1781039864000,-200.0,0.00023829,120]
[424672714,1781039864000,-443.84675067,0.00021122,30]
[424672713,1781039864000,-443.84675067,0.00020116,30]
[424672712,1781039864000,-443.84675067,0.0001911,30]
[424672718,1781040072000,415.75,8.4e-05,2]
[424672720,1781040073000,415.75,8.4e-05,2]
[424672719,1781040073000,415.75,8.4e-05,2]
[424672721,1781040073000,203.02594126,8.4e-05,2]
[424672722,1781040073000,212.75405874,8.4e-05,2]
[424672723,1781040075000,415.75771614,0.0002114,30]
[424672728,1781040293000,343.0,8.4e-05,2]
[424672730,1781040294000,343.0,8.4e-05,2]
[424672729,1781040294000,343.0,8.4e-05,2]
[424672731,1781040295000,343.0,8.4e-05,2]
[424672741,1781040513000,300.12,8.4e-05,2]
[424672742,1781040514000,300.12,8.4e-05,2]
[424672744,1781040514000,175.97594126,8.4e-05,2]
[424672743,1781040514000,300.12,8.4e-05,2]
[424672745,1781040515000,124.16405874,8.4e-05,2]
[424672807,1781040638000,-332.33817307,0.00014067,7]
[424672808,1781040638000,-160.15776348,0.00014067,7]
[424672819,1781040638000,-161.15202813,0.00015476,2]
[424672805,1781040638000,-5000.0,0.00013381,2]
[424672806,1781040638000,-332.33817307,0.00013791,7]
[424672818,1781040638000,-234.63187673,0.00015458,2]
[424672810,1781040638000,-332.33817307,0.00014894,7]
[424672809,1781040638000,-332.33817307,0.00014481,7]
[424672811,1781040638000,-240.23664524,0.00014894,7]
[424672816,1781040638000,-248.97670468,0.00015458,2]
[424672812,1781040638000,-258.12665357,0.00015,2]
[424672817,1781040638000,-234.08672081,0.00015458,2]
[424672813,1781040638000,-208.0,0.00015315,3]
[424672814,1781040638000,-332.33817309,0.00015446,7]
[424672820,1781040638000,-276.26856286,0.00016189,2]
[424672815,1781040638000,-300.0,0.00015457,2]
[424672821,1781040638000,-17586.62898724,0.00016216,2]
[424672866,1781040639000,-500.0,0.00016438,2]
[424672871,1781040639000,-500.0,0.00016438,2]
[424672862,1781040639000,-500.0,0.00016438,2]
[424672864,1781040639000,-500.0,0.00016438,2]
[424672863,1781040639000,-500.0,0.00016438,2]
[424672860,1781040639000,-500.0,0.00016438,2]
[424672856,1781040639000,-183.36,0.00016416,2]
[424672872,1781040639000,-500.0,0.00016438,2]
[424672857,1781040639000,-500.0,0.00016438,2]
[424672859,1781040639000,-500.0,0.00016438,2]
[424672854,1781040639000,-207.35024067,0.00016316,2]
[424672855,1781040639000,-190.882314,0.00016346,2]
[424672861,1781040639000,-523.52,0.00016438,2]
[424672869,1781040639000,-500.0,0.00016438,2]
[424672870,1781040639000,-606.08013701,0.00016438,2]
[424672874,1781040639000,-500.0,0.00016438,2]
[424672868,1781040639000,-500.0,0.00016438,2]
[424672867,1781040639000,-500.0,0.00016438,2]
[424672876,1781040639000,-500.0,0.00016438,2]
[424672889,1781040639000,-500.0,0.00016438,2]
[424672887,1781040639000,-500.0,0.00016438,2]
[424672879,1781040639000,-647.81863674,0.00016438,2]
[424672882,1781040639000,-500.0,0.00016438,2]
[424672878,1781040639000,-500.0,0.00016438,2]
[424672891,1781040639000,-500.0,0.00016438,2]
[424672885,1781040639000,-500.0,0.00016438,2]
[424672893,1781040639000,-500.0,0.00016438,2]
[424672883,1781040639000,-500.0,0.00016438,2]
[424672849,1781040639000,-203.5141163,0.00016292,2]
[424672865,1781040639000,-500.0,0.00016438,2]
[424672858,1781040639000,-500.0,0.00016438,2]
[424672828,1781040639000,-611.35293517,0.00016237,2]
[424672853,1781040639000,-444.0,0.00016292,2]
[424672822,1781040639000,-19089.53721492,0.00016216,2]
[424672833,1781040639000,-611.35293517,0.00016237,2]
[424672832,1781040639000,-611.35293517,0.00016237,2]
[424672823,1781040639000,-611.35293517,0.00016237,2]
[424672824,1781040639000,-611.35293517,0.00016237,2]
[424672825,1781040639000,-611.35293517,0.00016237,2]
[424672827,1781040639000,-611.35293517,0.00016237,2]
[424672831,1781040639000,-611.35293517,0.00016237,2]
[424672826,1781040639000,-611.35293517,0.00016237,2]
[424672830,1781040639000,-611.35293517,0.00016237,2]
[424672829,1781040639000,-611.35293517,0.00016237,2]
[424672834,1781040639000,-611.35293517,0.00016237,2]
[424672836,1781040639000,-611.35293517,0.00016237,2]
[424672837,1781040639000,-611.35293517,0.00016237,2]
[424672845,1781040639000,-611.35293518,0.00016237,2]
[424672895,1781040639000,-500.0,0.00016438,2]
[424672839,1781040639000,-611.35293518,0.00016237,2]
[424672846,1781040639000,-611.35293518,0.00016237,2]
[424672842,1781040639000,-611.35293518,0.00016237,2]
[424672840,1781040639000,-611.35293518,0.00016237,2]
[424672843,1781040639000,-611.35293518,0.00016237,2]
[424672838,1781040639000,-611.35293518,0.00016237,2]
[424672835,1781040639000,-611.35293517,0.00016237,2]
[424672841,1781040639000,-611.35293518,0.00016237,2]
[424672844,1781040639000,-611.35293518,0.00016237,2]
[424672847,1781040639000,-1467.24704442,0.00016237,2]
[424672848,1781040639000,-262.581,0.00016238,2]
[424672852,1781040639000,-186.0,0.00016292,2]
[424672850,1781040639000,-2207.0,0.00016292,2]
[424672851,1781040639000,-3625.0,0.00016292,2]
[424672897,1781040639000,-500.0,0.00016438,2]
[424672994,1781040639000,-500.0,0.00016438,2]
[424672901,1781040639000,-500.0,0.00016438,2]
[424672966,1781040639000,-500.0,0.00016438,2]
[424672970,1781040639000,-500.0,0.00016438,2]
[424672972,1781040639000,-500.0,0.00016438,2]
[424672973,1781040639000,-500.0,0.00016438,2]
[424672981,1781040639000,-492.10725338,0.00016438,2]
[424672975,1781040639000,-500.0,0.00016438,2]
[424672979,1781040639000,-500.0,0.00016438,2]
[424672977,1781040639000,-500.0,0.00016438,2]
[424672985,1781040639000,-500.0,0.00016438,2]
[424672983,1781040639000,-907.24,0.00016438,2]
[424672991,1781040639000,-500.0,0.00016438,2]
[424672992,1781040639000,-500.0,0.00016438,2]
[424672989,1781040639000,-500.0,0.00016438,2]
[424672987,1781040639000,-500.0,0.00016438,2]
[424672996,1781040639000,-500.0,0.00016438,2]
[424672998,1781040639000,-500.0,0.00016438,2]
[424673000,1781040639000,-500.0,0.00016438,2]
[424673010,1781040639000,-500.0,0.00016438,2]
[424673012,1781040639000,-507.02,0.00016438,2]
[424673013,1781040639000,-500.0,0.00016438,2]
[424673017,1781040639000,-500.0,0.00016438,2]
[424673015,1781040639000,-500.0,0.00016438,2]
[424673002,1781040639000,-500.0,0.00016438,2]
[424673008,1781040639000,-500.0,0.00016438,2]
[424673006,1781040639000,-371.55053622,0.00016438,2]
[424673021,1781040639000,-500.0,0.00016438,2]
[424673019,1781040639000,-500.0,0.00016438,2]
[424673004,1781040639000,-500.0,0.00016438,2]
[424672899,1781040639000,-500.0,0.00016438,2]
[424672962,1781040639000,-500.0,0.00016438,2]
[424672968,1781040639000,-500.0,0.00016438,2]
[424673023,1781040639000,-500.0,0.00016438,2]
[424672955,1781040639000,-500.0,0.00016438,2]
[424672903,1781040639000,-500.0,0.00016438,2]
[424672916,1781040639000,-500.0,0.00016438,2]
[424672907,1781040639000,-500.0,0.00016438,2]
[424672908,1781040639000,-500.0,0.00016438,2]
[424672912,1781040639000,-500.0,0.00016438,2]
[424672905,1781040639000,-2285.1198,0.00016438,2]
[424672914,1781040639000,-500.0,0.00016438,2]
[424672920,1781040639000,-500.0,0.00016438,2]
[424672964,1781040639000,-500.0,0.00016438,2]
[424672918,1781040639000,-500.0,0.00016438,2]
[424672924,1781040639000,-500.0,0.00016438,2]
[424672922,1781040639000,-500.0,0.00016438,2]